lending/lending_fUSD_20240610
["ID","MTS","AMOUNT","RATE_DAILY","PERIOD"]
[328934922,1718010108463,-770.21,0.00013917,2]
[328934923,1718010108488,-152.04,0.00013989,2]
[328934924,1718010108511,-625.28915843,0.00013996,2]
[328934925,1718010108534,-1000.0,0.00013998,2]
[328934926,1718010108559,-1260.44934067,0.00013998,2]
[328934927,1718010108581,-688.05729315,0.00013998,2]
[328934928,1718010108606,-234.92335311,0.00013998,2]
[328934929,1718010108630,-181.46353453,0.00013998,2]
[328934930,1718010108654,-862.13999275,0.00013998,2]
[328934931,1718010108678,-299.99,0.00013998,2]
[328934932,1718010108702,-499.99,0.00013998,2]
[328934933,1718010108730,-818238.8781657,0.00013999,2]
[328934934,1718010108760,-251638.38769099,0.00014,2]
[328934935,1718010108784,-172.91734175,0.000142,2]
[328934936,1718010108810,-193.73200984,0.000143,2]
[328934937,1718010108837,-1096.99,0.000146,2]
[328934938,1718010108861,-1096.99,0.00014604,2]
[328934939,1718010108885,-1096.99,0.00014608,2]
[328934940,1718010108910,-1096.99,0.00014612,2]
[328934941,1718010108935,-1096.99,0.00014615,2]
[328934942,1718010108959,-1096.99,0.00014619,2]
[328934943,1718010108983,-1096.99,0.00014623,2]
[328934944,1718010109009,-1096.99,0.00014627,2]
[328934945,1718010109034,-1096.99,0.00014631,2]
[328934946,1718010109061,-1096.99,0.00014635,2]
[328934947,1718010109086,-1096.99,0.00014638,2]
[328934948,1718010109111,-1096.99,0.00014642,2]
[328934949,1718010109136,-1096.99,0.00014646,2]
[328934950,1718010109162,-1096.99,0.0001465,2]
[328934951,1718010109187,-1096.99,0.00014654,2]
[328934952,1718010109214,-1096.99,0.00014658,2]
[328934953,1718010109239,-1096.99,0.00014661,2]
[328934954,1718010109264,-1096.99,0.00014665,2]
[328934955,1718010109292,-1096.99,0.00014669,2]
[328934956,1718010109318,-1096.99,0.00014673,2]
[328934957,1718010109343,-15084.15763557,0.000147,2]
[328934958,1718010109365,-10281.0,0.00014781,2]
[328934959,1718010109389,-166.71,0.00014797,2]
[328934960,1718010109413,-210.0,0.0001486,2]
[328934961,1718010109436,-172.47,0.00014919,2]
[328934962,1718010109460,-325078.86814604,0.00015,2]
[328934963,1718010109483,-7592.43,0.00015086,2]
[328934964,1718010109509,-160.28,0.00015109,2]
[328934965,1718010109534,-152.04,0.00015124,2]
[328934966,1718010109559,-2937.61,0.00015134,2]
[328934967,1718010109583,-7392.78,0.00015368,2]
[328934968,1718010109606,-200.0,0.00015389,2]
[328934969,1718010109632,-519.07,0.00015975,2]
[328934970,1718010109658,-15084.15763555,0.00016082,2]
[328934971,1718010109686,-770.21,0.00016181,2]
[328934972,1718010109711,-1716.98537246,0.00016186,2]
[328934973,1718010109735,-7189.7,0.00016438,2]
[328934974,1718010109760,-172.47,0.00016502,2]
[328934975,1718010109784,-300.0,0.00016609,2]
[328934976,1718010109809,-519.07,0.00016774,2]
[328934977,1718010109832,-197.88,0.0001686,2]
[328934978,1718010109854,-166.71,0.00017263,2]
[328934979,1718010109879,-15084.15763555,0.00017464,2]
[328934980,1718010109901,-519.07,0.00017573,2]
[328934981,1718010109925,-300.0,0.00017979,2]
[328934982,1718010109949,-1459.91811195,0.00018,2]
[328934983,1718010109973,-649.72311182,0.00018,2]
[328934984,1718010109997,-172.47,0.00018085,2]
[328934985,1718010110021,-7392.78,0.00018108,2]
[328934986,1718010110047,-193.73200982,0.000182,2]
[328934987,1718010110074,-519.07,0.00018371,2]
[328934988,1718010110102,-770.21,0.00018445,2]
[328934989,1718010110129,-1716.98537246,0.00018471,2]
[328934990,1718010110157,-150.357,0.00018556,2]
[328934991,1718010110180,-150.357,0.00018564,2]
[328934992,1718010110208,-150.357,0.00018571,2]
[328934993,1718010110231,-150.357,0.00018579,2]
[328934994,1718010110255,-150.357,0.00018586,2]
[328934995,1718010110279,-150.357,0.00018594,2]
[328934996,1718010110304,-150.357,0.00018601,2]
[328934997,1718010110328,-150.357,0.00018609,2]
[328934998,1718010110353,-150.357,0.00018616,2]
[328934999,1718010110377,-150.357,0.00018624,2]
[328935000,1718010110403,-15084.15763555,0.00018845,2]
[328935001,1718010110427,-411.86575816,0.00019,2]
[328935002,1718010110451,-519.07,0.0001917,2]
[328935003,1718010110475,-155.06417439,0.00019178,2]
[328935004,1718010110501,-500.0,0.00019178,2]
[328935005,1718010110525,-500.0,0.00019178,2]
[328935006,1718010110550,-500.0,0.00019178,2]
[328935007,1718010110576,-500.0,0.00019178,2]
[328935008,1718010110601,-618.65103993,0.00019178,2]
[328935009,1718010110625,-235.94514028,0.00019178,2]
[328935010,1718010110651,-500.0,0.00019178,2]
[328935011,1718010110676,-166.57215857,0.00019178,2]
[328935012,1718010110702,-500.0,0.00019178,2]
[328935013,1718010110727,-500.0,0.00019178,2]
[328935014,1718010110754,-233.26536427,0.00019178,2]
[328935015,1718010110780,-500.0,0.00019178,2]
[328935016,1718010110808,-500.0,0.00019178,2]
[328935017,1718010110833,-303.69615158,0.00019178,2]
[328935018,1718010110858,-233.20829616,0.00019178,2]
[328935019,1718010110884,-364.50042257,0.00019178,2]
[328935020,1718010110910,-500.0,0.00019178,2]
[328935021,1718010110934,-363.54016623,0.00019178,2]
[328935022,1718010110959,-342.64206726,0.00019178,2]
[328935023,1718010110983,-3608.0,0.00019178,2]
[328935024,1718010111007,-163.65919174,0.00019233,2]
[328935025,1718010111212,-1000.0,0.00019496,2]
[328935026,1718010111239,-150.0,0.0001955,2]
[328935027,1718010111264,-189.3,0.00019718,2]
[328935028,1718010111290,-166.71,0.00019729,2]
[328935029,1718010111316,-187.57139828,0.0002,2]
[328935030,1718010111341,-155.0,0.0002,2]
[328935031,1718010111364,-1000.0,0.0002,2]
[328935032,1718010111389,-3893.9489826,0.0002,2]
[328935033,1718010111429,-1269.51416883,0.0002,2]
[328935034,1718010111457,-864.99778559,0.0002,2]
[328935035,1718010111483,-6263.53071247,0.0002,2]
[328935036,1718010111508,-250.0,0.00020098,2]
[328935037,1718010111531,-226.69645122,0.000201,2]
[328935038,1718010111558,-15084.15763555,0.00020227,2]
[328935039,1718010111584,-167.0,0.00020556,2]
[328935040,1718010111614,-350.0,0.00020646,2]
[328935041,1718010111642,-770.21,0.00020709,2]
[328935042,1718010111672,-1716.98537246,0.00020757,2]
[328935043,1718010111698,-7392.78,0.00020847,2]
[328935044,1718010111727,-2937.61,0.00021187,2]
[328935045,1718010111751,-450.0,0.00021194,2]
[328935046,1718010111775,-167.0,0.00021235,2]
[328935047,1718010111800,-169.35,0.00021474,2]
[328935048,1718010111831,-192.0,0.00021474,2]
[328935049,1718010111856,-15084.15763555,0.00021609,2]
[328935050,1718010111882,-1000.0,0.00021742,2]
[328935051,1718010111906,-404.07445159,0.00021742,2]
[328935052,1718010111930,-573.0,0.000219,2]
[328935053,1718010111955,-167.0,0.00021913,2]
[328935054,1718010111983,-192.43,0.00021918,2]
[328935055,1718010112008,-250.0,0.00021918,2]
[328935056,1718010112035,-173.12,0.00021918,2]
[328935057,1718010112061,-150.0,0.00021918,2]
[328935058,1718010112087,-156.90415022,0.00021918,2]
[328935059,1718010112113,-1000.0,0.00021932,2]
[328935060,1718010112138,-790.69511824,0.00022,2]
[328935061,1718010112163,-1800.0,0.000221,2]
[328935062,1718010112189,-193.73200982,0.000221,2]
[328935063,1718010112217,-166.71,0.00022195,2]
[328935064,1718010112245,-167.0,0.00022592,2]
[328935065,1718010112273,-770.21,0.00022972,2]
[328935066,1718010112299,-15084.15763555,0.00022991,2]
[328935067,1718010112324,-4175.18689802,0.00023,2]
[328935068,1718010112351,-175.0,0.00023,2]
[328935069,1718010112378,-1716.98537246,0.00023043,2]
[328935070,1718010112404,-167.0,0.0002327,2]
[328935071,1718010112428,-151.0,0.000234,7]
[328935072,1718010112455,-151.0,0.000234,7]
[328935073,1718010112480,-151.0,0.000234,7]
[328935074,1718010112506,-24673.89518463,0.000236,2]
[328935075,1718010112529,-151.0,0.000236,7]
[328935076,1718010112552,-167.0,0.00023949,2]
[328935077,1718010112575,-959.56613366,0.00024,2]
[328935078,1718010112598,-549.50595062,0.00024,2]
[328935079,1718010126686,549.50595062,0.0002,2]
[328935080,1718010177187,-188.97512994,0.0002,2]
[328935081,1718010177211,-549.50595062,0.0002,2]
[328935082,1718010177239,-226.69645122,0.000201,2]
[328935083,1718010177263,-1039.53038559,0.000241,2]
[328935084,1718010177286,-151.0,0.000241,7]
[328935085,1718010177318,-192.0,0.00024159,2]
[328935086,1718010177339,-396.10505936,0.0002421,2]
[328935087,1718010177362,-180.0,0.0002423,2]
[328935088,1718010177385,-260.18,0.00024245,2]
[328935089,1718010177408,-380.0,0.00024256,2]
[328935090,1718010177431,-380.0,0.0002426,2]
[328935091,1718010177455,-151.0,0.000243,7]
[328935092,1718010177480,-1000.0,0.00024369,2]
[328935093,1718010177504,-495.83285049,0.00024371,2]
[328935094,1718010177528,-3890.94750662,0.00024372,2]
[328935095,1718010177554,-15084.15763555,0.00024373,2]
[328935096,1718010177578,-153.635663,0.00024373,7]
[328935097,1718010177602,-151.0,0.00024373,7]
[328935098,1718010177626,-181.72,0.00024384,2]
[328935099,1718010177651,-160.42,0.00024384,2]
[328935100,1718010177674,-163.65919174,0.00024567,2]
[328935101,1718010177698,-6258.38475361,0.00024699,2]
[328935102,1718010177720,-573.0,0.000247,2]
[328935103,1718010177743,-131615.0,0.000247,2]
[328935104,1718010177770,-152.04,0.00024788,2]
[328935105,1718010177794,-864.25725023,0.00024796,2]
[328935106,1718010177817,-649.34279794,0.00024796,2]
[328935107,1718010177841,-794.88567015,0.00024797,2]
[328935108,1718010177866,-1265.32163919,0.00024797,2]
[328935109,1718010177890,-153.342797,0.00024798,7]
[328935110,1718010177913,-152.852084,0.00024798,7]
[328935111,1718010177936,-151.0,0.00024798,7]
[328935112,1718010177960,-151.0,0.00024798,7]
[328935113,1718010177984,-153.34038,0.00024798,7]
[328935114,1718010178008,-151.0,0.00024798,7]
[328935115,1718010178032,-156.81522,0.00024798,7]
[328935116,1718010178059,-21022.68188462,0.00024798,2]
[328935117,1718010178082,-151.0,0.00024799,7]
[328935118,1718010178110,-4546.75153244,0.00024799,2]
[328935119,1718010178138,-4546.75153244,0.00024799,2]
[328935120,1718010178167,-4546.75153244,0.00024799,2]
[328935121,1718010178194,-4546.75153244,0.00024799,2]
[328935122,1718010178226,-4546.75153244,0.00024799,2]
[328935123,1718010178254,-4546.75153244,0.00024799,2]
[328935124,1718010178283,-4546.75153244,0.00024799,2]
[328935125,1718010178311,-151.0,0.000248,7]
[328935126,1718010178335,-6798.54592399,0.000249,2]
[328935127,1718010178359,-800.0,0.00024986,2]
[328935128,1718010178384,-2210.12719413,0.00025,2]
[328935129,1718010178407,-2867.7458028,0.00025,2]
[328935130,1718010178432,-1250.0,0.00025,2]
[328935131,1718010178456,-930.57594584,0.00025,2]
[328935132,1718010178480,-225.24645646,0.00025,2]
[328935133,1718010178503,-326.06894527,0.00025,2]
[328935134,1718010178526,-159.12531189,0.00025,2]
[328935135,1718010178549,-706.630092,0.00025,2]
[328935136,1718010178572,-155.0,0.00025,2]
[328935137,1718010178596,-1277.21264975,0.00025,2]
[328935138,1718010178621,-326.19007849,0.00025,2]
[328935139,1718010178644,-155.0,0.00025,2]
[328935140,1718010178667,-151.0,0.00025,7]
[328935141,1718010178691,-1000.0,0.00025205,2]
[328935142,1718010178717,-770.21,0.00025236,2]
[328935143,1718010178746,-21022.68188457,0.00025267,2]
[328935144,1718010178770,-11739.0,0.000253,3]
[328935145,1718010178796,-151.0,0.00025312,7]
[328935146,1718010178820,-151.0,0.00025754,7]
[328935147,1718010178844,-152.157222,0.00025754,7]
[328935148,1718010178870,-15084.15763555,0.00025755,2]
[328935149,1718010178894,-21022.68188457,0.00025846,2]
[328935150,1718010178916,-163.26,0.0002589,2]
[328935151,1718010178940,-380.5296931,0.00026,2]
[328935152,1718010178964,-193.73200982,0.00026,2]
[328935153,1718010178989,-11739.0,0.00026,5]
[328935154,1718010179014,-168.28119332,0.00026002,2]
[328935155,1718010179038,-166.66666666,0.00026068,2]
[328935156,1718010179064,-155.42806937,0.00026126,2]
[328935157,1718010179090,-152.02953993,0.0002613,2]
[328935158,1718010179121,-4546.75153244,0.00026344,2]
[328935159,1718010179146,-152.37659966,0.00026364,2]
[328935160,1718010179171,-18511.6922151,0.000264,2]
[328935161,1718010179198,-21022.68188457,0.00026425,2]
[328935162,1718010179223,-155.00128118,0.00026433,2]
[328935163,1718010179248,-152.7171191,0.00026496,2]
[328935164,1718010179272,-155.46517657,0.00026508,2]
[328935165,1718010179302,-152.02953993,0.00026527,2]
[328935166,1718010179329,-155.42806937,0.00026528,2]
[328935167,1718010179358,-155.42806937,0.00026557,2]
[328935168,1718010179384,-155.1877213,0.00026563,2]
[328935169,1718010179408,-2057.12529549,0.000266,2]
[328935170,1718010179433,-155.115888,0.00026637,7]
[328935171,1718010179458,-151.0,0.00026637,7]
[328935172,1718010179482,-40000.0,0.00026637,10]
[328935173,1718010179506,-217.5286322,0.00026708,2]
[328935174,1718010179532,-154.40598489,0.00026774,2]
[328935175,1718010179560,-152.02953993,0.00026785,2]
[328935176,1718010179585,-1000.0,0.00026806,2]
[328935177,1718010179611,-485.59531198,0.00026817,2]
[328935178,1718010179635,-370.78354208,0.00026817,2]
[328935179,1718010179660,-1079.859,0.00026818,2]
[328935180,1718010179684,-5784.0,0.00026818,2]
[328935181,1718010179709,-1650.0,0.00026818,2]
[328935182,1718010179733,-38061.0,0.00026818,2]
[328935183,1718010179757,-1830.0,0.00026818,2]
[328935184,1718010179781,-1585.371,0.00026818,2]
[328935185,1718010179806,-5155.0,0.00026818,2]
[328935186,1718010179831,-441.0,0.00026818,2]
[328935187,1718010179854,-1269.0,0.00026818,2]
[328935188,1718010179878,-616.0,0.00026818,2]
[328935189,1718010179903,-2406.0,0.00026818,2]
[328935190,1718010179928,-156.132,0.00026818,2]
[328935191,1718010179952,-463.508,0.00026818,2]
[328935192,1718010179976,-168.887,0.00026818,2]
[328935193,1718010179999,-809.0,0.00026818,2]
[328935194,1718010180023,-546.0,0.00026818,2]
[328935195,1718010180047,-1304.0,0.00026818,2]
[328935196,1718010180071,-3197.215,0.00026818,2]
[328935197,1718010180096,-1978.0,0.00026818,2]
[328935198,1718010180124,-155.42806937,0.00026866,2]
[328935199,1718010180153,-150.0,0.00026968,2]
[328935200,1718010180181,-155.1877213,0.00026992,2]
[328935201,1718010180206,-200.0,0.00027,2]
[328935202,1718010180233,-11050.72232115,0.00027,2]
[328935203,1718010180258,-193375.52763559,0.00027,2]
[328935204,1718010180286,-1300.0,0.00027,2]
[328935205,1718010180314,-150.0,0.00027,4]
[328935206,1718010180338,-150.0,0.00027,4]
[328935207,1718010180365,-150.0,0.00027,4]
[328935208,1718010180390,-150.0,0.00027,4]
[328935209,1718010180416,-150.0,0.00027,4]
[328935210,1718010180442,-151.0,0.00027,7]
[328935211,1718010180637,-152.744927,0.00027,7]
[328935212,1718010180662,-4030.76487032,0.00027,2]
[328935213,1718010180687,-151.0,0.00027,7]
[328935214,1718010180714,-151.0,0.00027,7]
[328935215,1718010180744,-151.0,0.00027,7]
[328935216,1718010180770,-33148.0,0.00027014,2]
[328935217,1718010180796,-34110.0,0.00027014,2]
[328935218,1718010180821,-574.0,0.00027014,2]
[328935219,1718010180847,-150.0,0.00027017,2]
[328935220,1718010180875,-152.02953993,0.00027037,2]
[328935221,1718010180899,-155.49958463,0.00027062,2]
[328935222,1718010180924,-155.42806937,0.00027073,2]
[328935223,1718010180947,-15084.15763555,0.00027136,2]
[328935224,1718010180976,-150.0,0.00027147,2]
[328935225,1718010181001,-2012.74489701,0.000272,2]
[328935226,1718010181024,-156.01619075,0.00027207,2]
[328935227,1718010181047,-155.42806937,0.00027211,2]
[328935228,1718010181070,-1050.23900762,0.00027214,2]
[328935229,1718010181095,-155.1877213,0.00027219,2]
[328935230,1718010181122,-152.02953993,0.00027226,2]
[328935231,1718010181146,-182.021945,0.00027337,2]
[328935232,1718010181169,-183.552064,0.00027337,2]
[328935233,1718010181193,-12184.695927,0.00027337,2]
[328935234,1718010181217,-213.911609,0.00027337,2]
[328935235,1718010181244,-171.524553,0.00027337,2]
[328935236,1718010181272,-13196.852726,0.00027337,2]
[328935237,1718010181297,-416.285864,0.00027337,2]
[328935238,1718010181321,-261.845016,0.00027337,2]
[328935239,1718010181347,-10528.540529,0.00027337,2]
[328935240,1718010181373,-185.480065,0.00027337,2]
[328935241,1718010181398,-180.714101,0.00027337,2]
[328935242,1718010181421,-235.61083,0.00027337,2]
[328935243,1718010181446,-2982.438397,0.00027337,2]
[328935244,1718010181472,-234.443873,0.00027337,2]
[328935245,1718010181499,-4061.565309,0.00027337,2]
[328935246,1718010181524,-202.470428,0.00027337,2]
[328935247,1718010181550,-217.959893,0.00027337,2]
[328935248,1718010181575,-155.46517658,0.00027337,2]
[328935249,1718010181600,-152.37659966,0.00027339,2]
[328935250,1718010181625,-152.04,0.00027387,2]
[328935251,1718010181650,-809.5948544,0.0002739,2]
[328935252,1718010181674,-150.0,0.00027397,2]
[328935253,1718010181698,-500.0,0.00027397,2]
[328935254,1718010181722,-500.0,0.00027397,2]
[328935255,1718010181746,-500.0,0.00027397,2]
[328935256,1718010181770,-500.0,0.00027397,2]
[328935257,1718010181795,-500.0,0.00027397,2]
[328935258,1718010181820,-500.0,0.00027397,2]
[328935259,1718010181845,-500.0,0.00027397,2]
[328935260,1718010181871,-500.0,0.00027397,2]
[328935261,1718010181895,-500.0,0.00027397,2]
[328935262,1718010181919,-500.0,0.00027397,2]
[328935263,1718010181943,-500.0,0.00027397,2]
[328935264,1718010181968,-500.0,0.00027397,2]
[328935265,1718010181995,-500.0,0.00027397,2]
[328935266,1718010182022,-500.0,0.00027397,2]
[328935267,1718010182052,-357.43312735,0.00027397,2]
[328935268,1718010182079,-500.0,0.00027397,2]
[328935269,1718010182106,-500.0,0.00027397,2]
[328935270,1718010182131,-500.0,0.00027397,2]
[328935271,1718010182157,-9620.05,0.00027397,2]
[328935272,1718010182182,-173.16,0.00027397,2]
[328935273,1718010182208,-5346.070624,0.00027397,7]
[328935274,1718010182236,-5346.070624,0.00027397,7]
[328935275,1718010182262,-5346.070624,0.00027397,7]
[328935276,1718010182287,-5346.070624,0.00027397,7]
[328935277,1718010182319,-5346.070624,0.00027397,7]
[328935278,1718010182342,-5346.070624,0.00027397,7]
[328935279,1718010182366,-5346.070624,0.00027397,7]
[328935280,1718010182391,-5346.070624,0.00027397,7]
[328935281,1718010182415,-2486.05012708,0.000274,2]
[328935282,1718010182439,-3517.06,0.000274,2]
[328935283,1718010182464,-4215.01,0.000274,2]
[328935284,1718010182487,-1004.38707222,0.000274,2]
[328935285,1718010182513,-151.0,0.000274,7]
[328935286,1718010182537,-474.89,0.000274,2]
[328935287,1718010182564,-474.89,0.000274,2]
[328935288,1718010182589,-474.89,0.000274,2]
[328935289,1718010182612,-474.89,0.000274,2]
[328935290,1718010182635,-474.89,0.000274,2]
[328935291,1718010182656,-474.89,0.000274,2]
[328935292,1718010182679,-474.89,0.000274,2]
[328935293,1718010182702,-474.89,0.000274,2]
[328935294,1718010182725,-474.89,0.000274,2]
[328935295,1718010182749,-474.89,0.000274,2]
[328935296,1718010182773,-5346.070624,0.000274,7]
[328935297,1718010182798,-5346.070624,0.000274,7]
[328935298,1718010182822,-397.360506,0.000274,2]
[328935299,1718010182850,-151.0,0.00027411,4]
[328935300,1718010182880,-150.0,0.00027419,2]
[328935301,1718010182907,-150.0,0.00027429,7]
[328935302,1718010182936,-152.02953993,0.00027432,2]
[328935303,1718010182967,-155.42806937,0.00027444,2]
[328935304,1718010182992,-150.0,0.000275,7]
[328935305,1718010183020,-770.21,0.000275,2]
[328935306,1718010183045,-150.0,0.00027534,2]
[328935307,1718010183070,-604.85439021,0.00027555,2]
[328935308,1718010183099,-155.42806937,0.00027575,2]
[328935309,1718010183128,-152.37659966,0.00027585,2]
[328935310,1718010183157,-150.0,0.000276,7]
[328935311,1718010183186,-155.42806937,0.0002763,2]
[328935312,1718010183217,-150.0,0.00027658,2]
[328935313,1718010183247,-150.0,0.00027671,2]
[328935314,1718010183275,-12184.695927,0.00027679,2]
[328935315,1718010183302,-213.911609,0.00027679,2]
[328935316,1718010183329,-13196.852726,0.00027679,2]
[328935317,1718010183354,-416.285864,0.00027679,2]
[328935318,1718010183380,-261.845016,0.00027679,2]
[328935319,1718010183406,-10528.540529,0.00027679,2]
[328935320,1718010183432,-2982.438397,0.00027679,2]
[328935321,1718010183457,-4061.565309,0.00027679,2]
[328935322,1718010183481,-151.0,0.00027679,7]
[328935323,1718010183510,-150.0,0.0002771,2]
[328935324,1718010183539,-150.0,0.00027752,2]
[328935325,1718010183565,-155.1877213,0.00027785,2]
[328935326,1718010183591,-183.552064,0.00027793,2]
[328935327,1718010183617,-150.0,0.00027808,2]
[328935328,1718010183644,-150.0,0.00027857,7]
[328935329,1718010183674,-150.0,0.0002786,2]
[328935330,1718010183701,-152.02953993,0.00027931,2]
[328935331,1718010183726,-150.0,0.00027945,2]
[328935332,1718010183753,-150.0,0.00027949,2]
[328935333,1718010183781,-150.0,0.0002795,2]
[328935334,1718010183810,-150.0,0.00027958,2]
[328935335,1718010183836,-163.48925101,0.00027962,2]
[328935336,1718010183865,-151.0,0.00027971,2]
[328935337,1718010183891,-224.8860613,0.00028,2]
[328935338,1718010183915,-3346.26590507,0.00028,2]
[328935339,1718010183940,-24268.91381523,0.00028,2]
[328935340,1718010183963,-485.3782763,0.00028,2]
[328935341,1718010183988,-150.0,0.00028,7]
[328935342,1718010184012,-152.87445,0.00028,7]
[328935343,1718010184037,-12184.695927,0.0002802,2]
[328935344,1718010184066,-213.911609,0.0002802,2]
[328935345,1718010184090,-13196.852726,0.0002802,2]
[328935346,1718010184116,-416.285864,0.0002802,2]
[328935347,1718010184140,-261.845016,0.0002802,2]
[328935348,1718010184163,-10528.540529,0.0002802,2]
[328935349,1718010184188,-2982.438397,0.0002802,2]
[328935350,1718010184214,-4061.565309,0.0002802,2]
[328935351,1718010184239,-152.02953993,0.00028021,2]
[328935352,1718010184262,-152.7171191,0.00028034,2]
[328935353,1718010184288,-150.0,0.00028049,2]
[328935354,1718010184316,-150.0,0.0002805,2]
[328935355,1718010184344,-152.02953993,0.00028075,2]
[328935356,1718010184370,-150.0,0.00028082,2]
[328935357,1718010184396,-1211.82,0.00028082,2]
[328935358,1718010184419,-882.73,0.00028082,2]
[328935359,1718010184449,-152.02953993,0.0002812,2]
[328935360,1718010184476,-4546.75153244,0.00028122,2]
[328935361,1718010184502,-150.0,0.00028128,2]
[328935362,1718010184528,-150.0,0.00028141,2]
[328935363,1718010184557,-150.0,0.00028165,2]
[328935364,1718010184585,-150.0,0.00028186,2]
[328935365,1718010184611,-150.0,0.000282,7]
[328935366,1718010184636,-154.32068212,0.00028202,2]
[328935367,1718010184660,-150.0,0.00028219,2]
[328935368,1718010184685,-155.42806937,0.00028238,2]
[328935369,1718010184709,-183.552064,0.00028248,2]
[328935370,1718010184738,-150.0,0.0002825,2]
[328935371,1718010184764,-150.0,0.00028286,7]
[328935372,1718010184793,-150.0,0.00028307,2]
[328935373,1718010184821,-150.0,0.00028342,2]
[328935374,1718010184845,-150.0,0.00028356,2]
[328935375,1718010184870,-526.42,0.00028356,2]
[328935376,1718010184894,-422.49,0.00028356,2]
[328935377,1718010184919,-150.0,0.00028356,2]
[328935378,1718010184945,-323.45,0.00028356,2]
[328935379,1718010184972,-359.58,0.00028356,2]
[328935380,1718010184997,-164.21,0.00028356,2]
[328935381,1718010185023,-154.72,0.00028356,2]
[328935382,1718010185053,-152.33,0.00028356,2]
[328935383,1718010185078,-5346.070624,0.00028362,7]
[328935384,1718010185104,-5346.070624,0.00028362,7]
[328935385,1718010185129,-12184.695927,0.00028362,2]
[328935386,1718010185155,-213.911609,0.00028362,2]
[328935387,1718010185347,-13196.852726,0.00028362,2]
[328935388,1718010185384,-416.285864,0.00028362,2]
[328935389,1718010185412,-261.845016,0.00028362,2]
[328935390,1718010185439,-10528.540529,0.00028362,2]
[328935391,1718010185463,-2982.438397,0.00028362,2]
[328935392,1718010185487,-4061.565309,0.00028362,2]
[328935393,1718010185516,-150.0,0.00028366,2]
[328935394,1718010185549,-150.0,0.0002837,2]
[328935395,1718010185578,-154.32068212,0.00028379,2]
[328935396,1718010185602,-155.0,0.000284,2]
[328935397,1718010185631,-152.02953993,0.00028422,2]
[328935398,1718010185658,-152.7171191,0.00028451,2]
[328935399,1718010185688,-152.02953993,0.00028461,2]
[328935400,1718010185714,-151.0,0.00028474,2]
[328935401,1718010185740,-150.0,0.00028474,2]
[328935402,1718010185769,-150.0,0.00028474,2]
[328935403,1718010185794,-150.0,0.00028474,2]
[328935404,1718010185820,-210.688,0.00028474,2]
[328935405,1718010185844,-152.881,0.00028474,2]
[328935406,1718010185870,-197.054,0.00028474,2]
[328935407,1718010185893,-240.056,0.00028474,2]
[328935408,1718010185917,-156.727,0.00028474,2]
[328935409,1718010185942,-168.428,0.00028474,2]
[328935410,1718010185967,-286.955,0.00028474,2]
[328935411,1718010185991,-184.118,0.00028474,2]
[328935412,1718010186014,-258.092,0.00028474,2]
[328935413,1718010186038,-201.796,0.00028474,2]
[328935414,1718010186063,-199.664,0.00028474,2]
[328935415,1718010186088,-150.691,0.00028474,2]
[328935416,1718010186115,-150.202,0.00028474,2]
[328935417,1718010186141,-151.0,0.00028474,7]
[328935418,1718010186166,-150.0,0.00028474,2]
[328935419,1718010186193,-290.0,0.00028474,2]
[328935420,1718010186220,-361.667,0.00028474,2]
[328935421,1718010186250,-155.1877213,0.00028489,2]